Cogmind - Beta 9.3 @@@ ROGUE MODE // 2019.12.18 @ 21:21:53 // Winter2019/RPGLIKE Player: Cassie Rose Result: Destroyed by G-34 Mercenary with Small Laser Performance ------------- Evolutions (1) 500 Regions Visited (2) 400 Robots Destroyed (45) 225 Value Destroyed (1151) 1151 Prototype IDs (0) 0 Alien Tech Used (0) 0 Bonus (8) 8 TOTAL SCORE: 2284 Bonus ------- High Alert Combat Kills 8 Cogmind --------- Core Integrity 0/1000 Matter 183/300 Energy 265/265 System Corruption 0% Temperature Cool (69) Movement Treading (160) Location -9/Materials Parts ------- > --- POWER (2) -------- Improved Ion Engine > --- PROPULSION (4) --- Light Treads Light Treads Light Treads Light Treads > --- UTILITY (3) ------ Improved Terrain Scanner Improved Terrain Scan Processor > --- WEAPON (2) ------- Heavy Assault Rifle > --- INVENTORY (0) ---- (None) Peak State ------------ > --- POWER ------------ Improved Ion Engine Light Nuclear Core > --- PROPULSION ------- Light Treads Light Treads Light Treads Light Treads > --- UTILITY ---------- Sensor Array Improved Terrain Scanner Improved Terrain Scan Processor > --- WEAPON ----------- EM Pulse Gun Heavy Assault Rifle > --- INVENTORY -------- (None) [Rating: 18] Favorites ----------- Power Ion Engine Engine Ion Engine Power Core Light Nuclear Core Propulsion Light Treads Treads Light Treads Utility Improved Terrain Scanner Device Improved Terrain Scanner Processor Terrain Scan Processor Weapon EM Pulse Gun Energy Gun EM Pulse Gun Ballistic Gun Light Assault Rifle Build | -11 -10 -9 ------- Run | Scr Mat Mat Slots Evolved 7 | 5 1 1 Power 1 | 1 . . Propulsion 3 | 1 1 1 Utility 2 | 2 . . Weapon 1 | 1 . . Parts Attached 21 | 8 6 7 Power 4 | 2 1 1 Engine 3 | 2 . 1 Core 1 | . 1 . Reactor . | . . . Propulsion 6 | 2 2 2 Treads 6 | 2 2 2 Leg . | . . . Wheel . | . . . Hover . | . . . Flight . | . . . Utility 6 | 2 2 2 Device 2 | 1 1 . Storage . | . . . Processor 4 | 1 1 2 Hackware . | . . . Protection . | . . . Artifact . | . . . Weapon 5 | 2 1 2 Energy Gun 2 | 1 . 1 Energy Cannon . | . . . Ballistic Gun 3 | 1 1 1 Ballistic Cannon . | . . . Launcher . | . . . Special Weapon . | . . . Impact Weapon . | . . . Slashing Weapon . | . . . Piercing Weapon . | . . . Special Melee Weapon . | . . . Unidentified Prototypes . | . . . Parts Lost 4 | . . 4 Power 1 | . . 1 Propulsion . | . . . Utility 1 | . . 1 Weapon 2 | . . 2 Highest Loss Streak 4 | . . 4 Average Slot Usage (%) 97 | . 98 94 Engine 10 | . 11 9 Core 9 | . 9 8 Treads 26 | . 23 32 Device 19 | . 20 17 Processor 10 | . 10 9 Energy Gun 10 | . 10 8 Ballistic Gun 10 | . 10 9 Naked Turns . | . . . Heaviest Build 19 | 14 16 19 Greatest Support 85 | 40 65 85 Greatest Overweight (x) 3 | 3 . . Average Overweight (x) . | . . . Largest Inventory Capacity . | . . . Average Capacity . | . . . Most Carried . | . . . Average Carried . | . . . Final Capacity . | . . . Final Carried . | . . . Class Distribution -------------------- 41% | Scavenger-Skirmisher 40% | Skirmisher 15% | Mutant Dominant Class ---------------- Skirmisher | -10/Materials Scavenger-Skirmisher | -9/Materials Resources | -11 -10 -9 ----------- Run | Scr Mat Mat Matter Collected 533 | 285 144 104 Remotely . | . . . Salvage Created 1795 | 145 981 669 Parts 105 | 10 51 44 Haulers Intercepted 2 | . 2 . Recyclers Shooed 3 | 1 1 1 Parts Field Recycled . | . . . Retrieved Matter . | . . . Parts Self-Destructed . | . . . Prevented . | . . . Kills | -11 -10 -9 ------- Run | Scr Mat Mat Combat Hostiles Destroyed 30 | . 15 15 Guns 28 | . 14 14 AOE 1 | . . 1 Classes Destroyed 10 | 2 4 4 Worker 1 | . . 1 Builder 2 | . 1 1 Tunneler 3 | 2 . 1 Hauler 2 | . 2 . Recycler 4 | 1 2 1 Watcher 3 | . 3 . Swarmer 4 | . . 4 Grunt 21 | . 15 6 Duelist 1 | . . 1 Sentry 4 | . . 4 Best Kill Streak 6 | 3 3 6 Combat Bots Only 6 | . 2 6 Max Kills in Single Turn 2 | 1 1 2 Gunslinging . | . . . Exploded 1 | . . 1 Melee . | . . . Uniques/NPCs Destroyed . | . . . Combat | -11 -10 -9 -------- Run | Scr Mat Mat Damage Taken 2281 | . 638 1643 Core 1784 | . 504 1280 Absorbed by Shields . | . . . Redirected to Core 1594 | . 428 1166 Core Remaining (%) 88 | 100 76 . Volleys Fired 146 | 5 84 57 Largest 2 | 2 2 2 Hottest 63 | 60 60 63 Shots Fired 283 | 10 168 105 Gun 283 | 10 168 105 Cannon . | . . . Launcher . | . . . Special . | . . . Kinetic 146 | 5 84 57 Thermal 6 | . . 6 Explosive . | . . . Electromagnetic 131 | 5 84 42 Robot Hit Streak 12 | 4 12 12 Robot Miss Streak 6 | 1 4 6 Penetration Max . | . . . Secondary Targets 8 | . 3 5 Max Gunslinging Chain 1 | . 1 1 Shots Hit Robots 186 | 6 106 74 Core Hits 77 | 5 43 29 Critical Hits . | . . . Critical Kills . | . . . Critical Parts Destroyed . | . . . Melee Attacks . | . . . Impact . | . . . Slashing . | . . . Piercing . | . . . Sneak Attacks . | . . . Combat Hostiles . | . . . Follow-up Attacks . | . . . Damage Inflicted 2366 | 76 1196 1094 Guns 2256 | 76 1140 1040 Cannons . | . . . Explosions 110 | . 56 54 Melee . | . . . Ramming . | . . . Kinetic 897 | 33 300 564 Thermal 152 | . 56 96 Explosive . | . . . Electromagnetic 1317 | 43 840 434 Impact . | . . . Slashing . | . . . Piercing . | . . . Highest Corruption 4 | . 4 . Average Corruption 3 | . 3 . Corruption Purged . | . . . Effects 13 | . 13 . Message Errors 7 | . 7 . Heat Flow Errors 2 | . 2 . Targeting Errors 4 | . 4 . Overload Shots . | . . . Overflow Damage . | . . . Projectiles . | . . . Explosions . | . . . Melee . | . . . Knockbacks . | . . . Impact . | . . . Kinetic . | . . . Secondary . | . . . Self-Inflicted Damage 47 | . . 47 Shots 1 | . . 1 Rammed . | . . . Targets Rammed . | . . . Kicked . | . . . Crushed . | . . . Highest Temperature 517 | 47 517 284 Average Temperature 105 | 22 112 97 Received Heat Transfer 846 | . 354 492 Effects 7 | . 6 1 Shutdowns 2 | . 2 . Energy Bleed 2 | . 1 1 Interference 3 | . 3 . Siege Activations . | . . . Robots Corrupted 1 | . 1 . Combat Hostiles 1 | . 1 . Parts Fried 5 | . 4 1 Impact Corruptions . | . . . Robots Melted . | . . . Combat Hostiles . | . . . Parts Melted . | . . . Heat Transferred 250 | . 100 150 Parts Sabotaged . | . . . Parts Stolen . | . . . Parts Stripped . | . . . Power Chain Reactions 3 | . 2 1 Missiles Intercepted . | . . . Alert | -11 -10 -9 ------- Run | Scr Mat Mat Peak Influence 428 | 15 289 428 Average Influence 152 | 4 148 199 Maximum Alert Level 2 | . 1 2 Low Security (%) 72 | 100 74 60 Level 1 25 | . 25 34 Level 2 1 | . . 5 Level 3 . | . . . Level 4 . | . . . Level 5 . | . . . High Security . | . . . Max Security . | . . . Squads Dispatched 4 | . 4 . Investigation 2 | . 2 . Extermination . | . . . Reinforcement 2 | . 2 . Assault . | . . . Garrison . | . . . Intercept . | . . . Construction Impeded . | . . . Haulers Reinforced . | . . . Stealth | -11 -10 -9 --------- Run | Scr Mat Mat Distress Signals 4 | . 2 2 Communications Jammed . | . . . Distress Signals . | . . . Times Spotted 54 | . 27 27 Peak Tracking Total 11 | . 4 11 Tactical Retreats 5 | . 3 2 Traps | -11 -10 -9 ------- Run | Scr Mat Mat Traps Triggered 4 | . 4 . Indirectly . | . . . Trap Hack Attempts . | . . . Triggered . | . . . Disarmed . | . . . Reprogrammed . | . . . Reused . | . . . Traps Extracted . | . . . Installed . | . . . Triggered 1 | . 1 . Machines | -11 -10 -9 ---------- Run | Scr Mat Mat Machines Disabled 1 | . 1 . Max in Single Turn 1 | . 1 . Machines Sabotaged . | . . . Garrisons Compromised . | . . . Overloaded Fab Kills . | . . . Fab Network Shutdowns . | . . . Hacking | -11 -10 -9 --------- Run | Scr Mat Mat Machines Accessed . | . . . Terminals . | . . . Fabricators . | . . . Repair Stations . | . . . Recycling Units . | . . . Scanalyzers . | . . . Garrison Access . | . . . Total Hacks . | . . . Successful . | . . . Failed . | . . . Catastrophic . | . . . Database Lockouts . | . . . Manual . | . . . Terminals . | . . . Fabricators . | . . . Repair Stations . | . . . Recycling Units . | . . . Scanalyzers . | . . . Garrison Access . | . . . Terminal Hacks . | . . . Fabricator Hacks . | . . . Repair Station Hacks . | . . . Recycling Unit Hacks . | . . . Scanalyzer . | . . . Garrison Access Hacks . | . . . Unauthorized Hacks . | . . . Terminals . | . . . Fabricators . | . . . Repair Stations . | . . . Recycling Units . | . . . Scanalyzers . | . . . Garrison Access . | . . . Data Cores Recovered . | . . . Used . | . . . Hacking Detections . | . . . Full Trace Events . | . . . Feedback Events . | . . . Feedback Blocked . | . . . Robot Schematics Acquired . | . . . Robots Built . | . . . Matter . | . . . Time . | . . . Total Robot Build Rating . | . . . Part Schematics Acquired . | . . . Parts Built . | . . . Matter . | . . . Time . | . . . Total Part Build Rating . | . . . Parts Repaired . | . . . Time . | . . . Parts Recycled . | . . . Recycled Matter . | . . . Retrieved Matter . | . . . Retrieved Components . | . . . Parts Scanalyzed . | . . . Part Schematics Acquired . | . . . Parts Damaged . | . . . Bothacking | -11 -10 -9 ------------ Run | Scr Mat Mat Used RIF Installer . | . . . Robots Hacked . | . . . Non-combat . | . . . Combat . | . . . Robot Hacks Applied . | . . . Relay Couplers Released . | . . . Robots Rewired . | . . . Allies Hacked . | . . . Hacks Repelled . | . . . Allies | -11 -10 -9 -------- Run | Scr Mat Mat Total Allies . | . . . Largest Group . | . . . Highest-Rated Group . | . . . Highest-Rated Ally . | . . . Total Orders . | . . . Ally Attacks . | . . . Total Damage . | . . . Kills . | . . . Allies Corrupted . | . . . Allies Melted . | . . . Intel | -11 -10 -9 ------- Run | Scr Mat Mat Robot Analysis Total . | . . . Derelict Logs Recovered . | . . . Drone Launches . | . . . Drone Recoveries . | . . . Exploration | -11 -10 -9 ------------- Run | Scr Mat Mat Turns Passed 1394 | 111 845 438 Spaces Moved 543 | 55 353 135 Core 9 | 9 . . Treads 534 | 46 353 135 Legs . | . . . Wheels . | . . . Hover . | . . . Flight . | . . . Fastest Speed 50 | 50 160 160 Average Speed 159 | 156 160 160 Slowest Speed 200 | 200 160 160 Overloaded Moves . | . . . Propulsion Burnouts . | . . . Robots Hopped . | . . . Cave-ins Triggered . | . . . Exploration Rate (%) 31 | 4 75 15 Regions Visited 2 Branch Regions . Pre-discovered Areas . | . . . Known Exits Taken . | . . . Unknown Exits Taken 2 | 1 1 . Scrap Searched . | . . . Spaces Dug . | . . . Terrain Destroyed 15 | . 7 8 Melee . | . . . Projectile . | . . . AOE 15 | . 7 8 Actions | -11 -10 -9 --------- Run | Scr Mat Mat Total 800 | 67 482 251 Wait 49 | . 22 27 Move 541 | 54 352 135 Hop . | . . . Pick Up . | . . . Fast Attach 15 | 8 3 4 Attach . | . . . Detach . | . . . Swap 6 | . 3 3 Drop 6 | . 3 3 Fire 146 | 5 84 57 Melee . | . . . Ram . | . . . Kick . | . . . Crush . | . . . Escape Stasis . | . . . Rewire . | . . . Trap . | . . . Miscellaneous 37 | . 15 22 Route ------- -11/Scrapyard -10/Materials (discovered 3 exits: [*Mat x2] / [*Min]) -9/Materials History --------- Turn | Location | Event 1 | -11/Scrapyard | Upgraded with Power slot (x1) 1 | -11/Scrapyard | Upgraded with Propulsion slot (x1) 1 | -11/Scrapyard | Upgraded with Utility slot (x2) 1 | -11/Scrapyard | Upgraded with Weapon slot (x1) 13 | -11/Scrapyard | Discovered new exit (range 15) 112 | -11/Scrapyard | Entered Materials 521 | -10/Materials | Build established: Skirmisher 646 | -10/Materials | Discovered new exit (range 5) 695 | -10/Materials | Discovered new exit (range 11) 774 | -10/Materials | Reached level 2 779 | -10/Materials | Upgraded with Propulsion slot (x1) 808 | -10/Materials | Discovered new exit (range 12) 957 | -10/Materials | Entered another Materials area 959 | -9/Materials | Reached level 3 964 | -9/Materials | Upgraded with Propulsion slot (x1) 1073 | -9/Materials | Build established: Scavenger-Skirmisher 1294 | -9/Materials | Reached level 4 1358 | -9/Materials | Core integrity fell below 50% 1377 | -9/Materials | Core integrity fell below 20% 1395 | -9/Materials | Destroyed by G-34 Mercenary with Small Laser Last Messages --------------- 01370_ Overheating: Energy bleed (-35). 01372_ K-01 Serf collects debris. 01374_ K-01 Serf destroyed. 01374_ S-10 Pest destroyed. 01375_ Sml. Laser destroyed. 01375_ K-01 Serf collects debris. 01376_ U-05 Engineer lays Concrete. 01376_ Lgt. Nuclear Core destroyed. 01376_ K-01 Serf collects debris. 01381_ Used Protomatter to restore core integrity (+93, depleted) 01383_ K-01 Serf collects debris. 01385_ R-06 Scavenger collects Flight Unit. 01386_ Sensor Array destroyed. 01387_ K-01 Serf collects debris. 01389_ U-05 Engineer lays Concrete. 01391_ K-01 Serf collects debris. 01392_ K-01 Serf destroyed. 01392_ K-01 Serf collects debris. 01393_ R-06 Scavenger collects Flight Unit. 01395_ K-01 Serf collects debris. Map ----- +----------------------------------------------------+ | ??????????????????????????????????????"?? ??#??#?? | | ???????????????????????????????????? ?? ?#??###? | | ????????????????????????????????????? ???? #???### | | ???????????????????????????????????????? ? #????## | | ????????????????????????????????? ?? ? ? ?###??? | | ???????????????????????????? ??#??##?#?#???#?##??? | | ??????????????????????? ?? ?####????#??#?##??### | | ??????????????????????? ? ######??##?######### | | ??????????????????? + ########??########## | | ??????????????????##??##?##/###################### | | ????????????????? ### ############### | | ????????????????# ### ########### # | | ???????????????## ### """ #### # # | | ??????????????### ### """ #### # # | | ?????????????######## ""T"" """ ####"" + # | | ????????????? # """"" ###"Y # # | | ??????????? """"" ###################"" # # | | ??????????? """"" ################### # # | | ??????????#? """"" ############## ########### # | | ??????????# ############## # # | | ??????????# ###!!!! !##### # # | | ????????? # ###!!!!!=##### """ """ + # | | ?????????## ### * % =##### """!""" # # | | ?????????######+#######[ !%###### """*""" [#*=!# | | ????????? g= * *!###### %=! # # | | ???????? ==%! % @* + # # | | ????????? a *%!*g = = ################## # | | ????????? %%= ### #### # | | ????????? % k=|! ### #### + | | ????????? k r !*u=s### " """"" #### # | | ????????? *%%[! + """"""""" #### # | | ?????????? =##+#### """ """ #### # | | ???????????+##+#### s # ## [! #### # | | ??????????? #### %## ## !%= #### # | | ??????????? """ ####s ## #######+######### # | | ?????????????T" #### ## ##### ####### # | | ???????????? #### ## ##### # | | ?????????????## #### ## ##### T # | | ??????????????##### ########## %% # | | ??????????????? % ########### | | ???????????????? ? ########### ############ | | ???????????????????? ########### ############ | | ???????????????#???? ########### ############ | | ???????????????????? ############ ############ | | ?????????????????#???? ############ ############ | | ???????????????????? ############ ############ | | ???????????????????? ############ * ############ | | ????????????????????? ? ######%############# | | ???????????????????????# ? ??###=! #######?#### | | ?????????????????????? # "S ##?################# | +----------------------------------------------------+ Best States ------------- Heat Dissipation 31 Energy Generation 21 Energy Capacity 400 Matter Stores 300 Matter Capacity 300 Sight Range 16 Robot Scan Range 18 Terrain Scan Range 16 Terrain Scan Density 510 Evasion (%) 40 Recoil Reduction 4 Item Schematics ----------------- None Robot Schematics ------------------ None Fabricated ------------ Nothing Alien Tech Used ----------------- None Achievements -------------- None Challenges ------------ None RPGLIKE | -11 -10 -9 --------- Run | Scr Mat Mat Levels Raised 3 | . 1 2 XP Earned 8454 | 3000 2100 3354 XP Spent 6000 | 2960 1515 1525 Upgrades 25 | 9 9 7 Power Slot 1 | 1 . . Propulsion Slot 3 | 1 1 1 Utility Slot 2 | 2 . . Weapon Slot 1 | 1 . . Core Integrity 8 | 2 1 5 Heat Dissipation 1 | . . 1 Mass Support 1 | . 1 . Sensor Range 4 | 1 3 . Terrain Scan Density 4 | 1 3 . Protomatter Created 361 | . 158 203 Integrity Restored 815 | . 330 485 Core 780 | . 330 450 Parts 35 | . . 35 Protomatter Decayed 61 | . 48 13 Game ------ Seed IntegratedGatlingFilter Manual? 0 Play Time 00:17:49 Cumulative 68.6 hours Start 2019.12.18 @ 21:06:07 End 2019.12.18 @ 21:21:53 Sessions 1 Manual Loads 0 Difficulty Rogue Special Mode Winter2019/RPGLIKE Game No. 112 Rogue 112 Adventurer 0 Explorer 0 Win Type - Total 0 Types 0/0/0/0/0/0/0 Lore% 22 Gallery% 26 Achievement% 26 Wizard Run 0 Options --------- ASCII 0 Keyboard 0 Movement Mouse Keybinds 0 Fullscreen 1 Font 18/SmallcapsGlow Map View 76x50 Tactical HUD 1 Map Filters NONE Filters LOW_CONTRAST(13,24,33)|BRIGHTNESS(120)|SATURATION(80) Steam 1 RUN: 61e327a6-7a1c-4d90-b068-a18b0f594d59